lending/lending_fUSD_20260306
["ID","MTS","AMOUNT","RATE_DAILY","PERIOD"]
[407850452,1772833717562,-500.0,0.00013632,2]
[407850453,1772833717590,-263.86822264,0.00013632,2]
[407850454,1772833717621,-631.93411132,0.00013632,2]
[407850455,1772833717648,-631.93411132,0.00013632,2]
[407850456,1772833717676,-631.93411132,0.00013632,2]
[407850457,1772833717700,-631.93411132,0.00013632,2]
[407850458,1772833717723,-631.93411132,0.00013632,2]
[407850459,1772833717745,-200.0,0.00013633,2]
[407850460,1772833717769,-366486.56351037,0.00013633,2]
[407850461,1772833728442,5495.35938587,0.00013532,2]
[407850462,1772833728468,10000.01,0.00013532,2]
[407850463,1772833728496,10000.01,0.00013532,2]
[407850464,1772833728520,10000.01,0.00013532,2]
[407850465,1772833728546,359.82205572,0.00013532,2]
[407850466,1772833769090,-295.07650273,0.00013457,2]
[407850467,1772833769114,-791.48850127,0.00013473,2]
[407850470,1772833831950,-300.0,0.00013472,2]
[407850472,1772833831960,-158.44747329,0.00013472,2]
[407850473,1772833831972,-1041.55252671,0.00013472,2]
[407850474,1772833831985,-233.0,0.00013472,2]
[407850475,1772833831995,-13602.32706877,0.00013473,2]
[407850476,1772833832005,-261.0,0.00013473,2]
[407850477,1772833832014,-182.38094926,0.00013522,2]
[407850478,1772833832024,-151.0,0.00013529,2]
[407850479,1772833832033,-1159.05776479,0.00013531,3]
[407850480,1772833832043,-1159.05776479,0.00013531,3]
[407850481,1772833832053,-354.24522886,0.00013531,3]
[407850482,1772833832064,-689.16136204,0.00013531,3]
[407850483,1772833832076,-115.65117389,0.00013531,3]
[407850484,1772833832086,-444.25251287,0.00013531,3]
[407850485,1772833832169,-714.80525193,0.00013531,3]
[407850486,1772833832179,-303.38781552,0.00013532,2]
[407850487,1772833832191,-1625.0,0.00013532,2]
[407850488,1772833832203,-574.6,0.00013532,2]
[407850489,1772833832215,-637.11558668,0.00013532,2]
[407850490,1772833832355,-3234.15578863,0.00013532,2]
[407850491,1772833832367,-9986.55188874,0.00013532,2]
[407850492,1772833832391,-570.12167865,0.00013532,2]
[407850493,1772833832771,-107078.95159034,0.00013532,2]
[407850494,1772833832783,-4375.8559646,0.00013532,2]
[407850495,1772833838117,-1000.000001,0.00013532,2]
[407850496,1772833838233,-701.74242901,0.00013532,2]
[407850497,1772833838245,-2000.0,0.00013532,2]
[407850498,1772833838256,-526.50344134,0.00013532,2]
[407850499,1772833838267,-1315.64668937,0.00013532,2]
[407850500,1772833838347,-768798.53488049,0.00013532,2]
[407850503,1772833840509,-1067.42379196,0.00013532,2]
[407850504,1772833840521,-264.56333182,0.00013532,2]
[407850505,1772833840689,-1560084.63368026,0.00013532,2]
[407850506,1772833840699,-200.0,0.00013532,2]
[407850507,1772833840708,-2500.0,0.00013533,2]
[407850508,1772833840717,-500.0,0.00013573,2]
[407850509,1772833840727,-500.0,0.00013573,2]
[407850510,1772833840738,-500.38582798,0.00013573,2]
[407850511,1772833840747,-502.26276919,0.00013573,2]
[407850512,1772833840756,-164.71106665,0.00013573,2]
[407850513,1772833840766,-500.0,0.00013573,2]
[407850514,1772833840775,-500.0,0.00013573,2]
[407850515,1772833840783,-500.0,0.00013573,2]
[407850516,1772833840793,-500.0,0.00013573,2]
[407850517,1772833840801,-500.0,0.00013573,2]
[407850518,1772833840810,-1448.5564,0.00013644,2]
[407850519,1772833840820,-573.58002767,0.00013673,2]
[407850520,1772833840830,-500.0,0.00013673,2]
[407850521,1772833840839,-500.11732428,0.00013673,2]
[407850522,1772833840849,-500.0,0.00013673,2]
[407850523,1772833840858,-500.0,0.00013673,2]
[407850524,1772833840867,-500.0,0.00013673,2]
[407850525,1772833840877,-500.0,0.00013673,2]
[407850526,1772833840890,-500.0,0.00013673,2]
[407850527,1772833840900,-299.99,0.00013673,2]
[407850528,1772833840909,-9999.99,0.00013673,2]
[407850529,1772833840918,-19849.18,0.00013673,2]
[407850530,1772833840927,-9999.99,0.00013673,2]
[407850531,1772833840937,-999.99,0.00013673,2]
[407850532,1772833840946,-150.99,0.00013673,2]
[407850533,1772833840955,-600.0,0.000137,5]
[407850534,1772833840965,-900.0,0.000138,5]
[407850535,1772833840974,-1300.0,0.000139,5]
[407850536,1772833840988,-3580.67,0.0001404,2]
[407850537,1772833840998,-500.0,0.00014221,2]
[407850538,1772833841008,-372.24433971,0.00014221,2]
[407850539,1772833841017,-1000.0,0.00014221,2]
[407850540,1772833841027,-549.03924439,0.00014242,2]
[407850541,1772833841036,-276.0,0.00014272,2]
[407850542,1772833841046,-259.28312793,0.00014301,2]
[407850543,1772833841056,-1852.42,0.00014311,2]
[407850544,1772833841065,-1699.0,0.00014401,2]
[407850545,1772833841075,-1229.0,0.00014429,2]
[407850546,1772833841083,-1910.0,0.00014458,2]
[407850547,1772833841097,-1626.0,0.00014487,2]
[407850548,1772833841106,-264.0,0.00014585,2]
[407850549,1772833841115,-433.0,0.00014614,2]
[407850550,1772833841125,-255.0,0.00014741,2]
[407850551,1772833841134,-420.0,0.00014767,2]
[407850552,1772833841144,-1500.0,0.00014768,2]
[407850553,1772833841154,-32912.143,0.00014795,2]
[407850554,1772833841163,-244.88431677,0.00014819,2]
[407850555,1772833841173,-1680.0,0.00014819,2]
[407850556,1772833841183,-2263.39145893,0.0001482,2]
[407850557,1772833841192,-159.0,0.00014901,2]
[407850558,1772833841201,-500.0,0.00014925,2]
[407850559,1772833841211,-500.0,0.00014925,2]
[407850560,1772833841220,-500.0,0.00014925,2]
[407850561,1772833841229,-500.0,0.00014925,2]
[407850562,1772833841239,-500.0,0.00014925,2]
[407850563,1772833841248,-500.0,0.00014925,2]
[407850564,1772833841257,-1475.0,0.0001493,2]
[407850565,1772833841267,-1311.0,0.0001496,2]
[407850566,1772833841277,-600.0,0.00014987,2]
[407850567,1772833841289,-600.0,0.00014987,2]
[407850568,1772833841299,-600.0,0.00014987,2]
[407850569,1772833841309,-600.0,0.00014987,2]
[407850570,1772833841318,-600.0,0.00014987,2]
[407850571,1772833841328,-300.0,0.00014993,2]
[407850572,1772833841338,-250.0,0.00015,2]
[407850573,1772833841347,-9999.99,0.0001531,2]
[407850574,1772833841356,-19999.99,0.0001531,2]
[407850575,1772833841366,-2000.0,0.00015316,2]
[407850576,1772833841375,-1057.2086331,0.00015473,2]
[407850577,1772833841386,-1000.0,0.00015473,2]
[407850578,1772833841396,-1000.0,0.00015473,2]
[407850579,1772833841405,-1000.0,0.00015473,2]
[407850580,1772833841415,-2576.11491031,0.0001566,2]
[407850581,1772833841425,-1003.37044262,0.00015864,2]
[407850582,1772833841434,-2000.0,0.0001589,2]
[407850583,1772833841444,-459.74453046,0.00015936,2]
[407850584,1772833841454,-500.0,0.00015936,2]
[407850585,1772833841464,-433.0,0.00015954,2]
[407850586,1772833841474,-1500.0,0.00016021,2]
[407850587,1772833841484,-1500.0,0.00016021,2]
[407850588,1772833841495,-587.0,0.00016187,2]
[407850589,1772833841505,-163.32,0.0001621,2]
[407850590,1772833841514,-200.0,0.00016266,2]
[407850591,1772833841523,-720.0,0.00016301,2]
[407850592,1772833841534,-150.0,0.00016344,2]
[407850593,1772833841544,-259.47,0.00016436,2]
[407850594,1772833841554,-163.32,0.0001648,2]
[407850595,1772833841564,-778.57186039,0.00016569,2]
[407850596,1772833841574,-1000.0,0.00016569,2]
[407850597,1772833841583,-14393.81556995,0.00016657,2]
[407850598,1772833841592,-163.32,0.0001675,2]
[407850599,1772833841602,-300.0,0.00017,2]
[407850600,1772833841611,-163.32,0.0001702,2]
[407850601,1772833841621,-163.32,0.0001729,2]
[407850602,1772833841631,-1000.0,0.00017352,2]
[407850603,1772833841640,-500.0,0.00017425,2]
[407850604,1772833841650,-163.32,0.0001756,2]
[407850605,1772833841660,-900.0,0.00017714,2]
[407850606,1772833841670,-823.0,0.00017743,2]
[407850607,1772833841679,-2576.11491031,0.00017776,2]
[407850608,1772833841689,-250.0,0.00017802,2]
[407850609,1772833841699,-163.32,0.0001783,2]
[407850610,1772833841709,-163.32,0.000181,2]
[407850611,1772833841718,-500.0,0.00018263,2]
[407850612,1772833841727,-163.32,0.0001837,2]
[407850613,1772833841737,-163.32,0.0001864,2]
[407850614,1772833841747,-217.38,0.00018715,2]
[407850615,1772833841756,-163.32,0.0001891,2]
[407850616,1772833841765,-371.43183159,0.00019,2]
[407850617,1772833841775,-900.0,0.00019084,2]
[407850618,1772833841784,-500.0,0.00019099,2]
[407850619,1772833841793,-163.32,0.0001918,2]
[407850620,1772833841802,-2000.0,0.000192,2]
[407850621,1772833841812,-1152.0,0.00019449,2]
[407850622,1772833841821,-163.32,0.0001945,2]
[407850623,1772833841831,-1000.0,0.00019521,2]
[407850624,1772833841840,-160.0,0.00019566,2]
[407850625,1772833841849,-1000.0,0.00019624,2]
[407850626,1772833841859,-500.0,0.00019699,2]
[407850627,1772833841868,-163.32,0.0001972,2]
[407850628,1772833841886,-1000.0,0.00019736,2]
[407850629,1772833841897,-150.0,0.00019773,2]
[407850630,1772833841907,-1000.0,0.00019782,2]
[407850631,1772833841917,-1000.0,0.00019784,2]
[407850632,1772833841926,-1000.0,0.00019823,2]
[407850633,1772833841936,-1000.0,0.00019824,2]
[407850634,1772833841945,-1000.0,0.00019832,2]
[407850635,1772833841954,-14393.81556995,0.00019842,2]
[407850636,1772833841964,-1000.0,0.00019871,2]
[407850637,1772833841974,-150.0,0.00019886,2]
[407850638,1772833841988,-2576.11491031,0.00019893,2]
[407850639,1772833841997,-152.8085332,0.00019894,2]
[407850640,1772833842007,-25000.0,0.000199,3]
[407850641,1772833842017,-1600.0,0.000199,7]
[407850642,1772833842027,-1000.0,0.00019908,2]
[407850643,1772833842037,-150.0,0.00019942,2]
[407850644,1772833842047,-150.0,0.0001995,2]
[407850645,1772833842058,-1000.0,0.0001997,2]
[407850646,1772833842067,-446.12402339,0.00019973,2]
[407850647,1772833842077,-500.0,0.00019973,2]
[407850648,1772833842086,-500.0,0.00019973,2]
[407850649,1772833842096,-500.0,0.00019973,2]
[407850650,1772833842106,-500.0,0.00019973,2]
[407850651,1772833842116,-500.0,0.00019973,2]
[407850652,1772833842126,-500.0,0.00019973,2]
[407850653,1772833842136,-163.32,0.0001999,2]
[407850654,1772833842146,-158.5064583,0.00019997,2]
[407850655,1772833842155,-197552.186168,0.00019997,2]
[407850656,1772833842165,-5204.8036775,0.00019997,2]
[407850657,1772833842174,-46502.3713492,0.00019997,2]
[407850658,1772833842184,-151.0,0.00019997,2]
[407850659,1772833842193,-319549.27568403,0.0002,2]
[407850660,1772833842203,-132637.64876581,0.0002,2]
[407850661,1772833842212,-2953.57487299,0.0002,7]
[407850662,1772833842221,-501.242938,0.0002,10]
[407850663,1772833842232,-532.21530917,0.0002,7]
[407850664,1772833842242,-12979.23134695,0.0002,2]
[407850665,1772833842252,-724.51160049,0.0002,120]
[407850666,1772833842261,-1834.01186954,0.0002,120]
[407850667,1772833842271,-301.26432731,0.0002,5]
[407850668,1772833842281,-15000.0,0.0002,7]
[407850669,1772833842291,-292.7,0.0002,7]
[407850670,1772833842300,-9900.03,0.0002,30]
[407850671,1772833842310,-200.0,0.0002,2]
[407850672,1772833842319,-3816.52,0.00020086,2]
[407850673,1772833842329,-168.0,0.00020114,2]
[407850674,1772833842338,-168.0,0.00020136,2]
[407850675,1772833842348,-1600.0,0.00020151,2]
[407850676,1772833842358,-482.5,0.00020164,2]
[407850677,1772833842368,-8128.64,0.00020187,7]
[407850678,1772833842378,-1635.65,0.00020247,2]
[407850679,1772833842387,-163.32,0.0002026,2]
[407850680,1772833842398,-168.0,0.00020325,2]
[407850681,1772833842407,-745.944593,0.00020384,7]
[407850682,1772833842417,-303.980211,0.00020384,7]
[407850683,1772833842427,-168.0,0.0002039,2]
[407850684,1772833842437,-168.0,0.00020431,2]
[407850685,1772833842447,-482.5,0.00020438,2]
[407850686,1772833842456,-181.71661598,0.00020521,2]
[407850687,1772833842466,-501.33101077,0.00020521,2]
[407850688,1772833842475,-1000.0,0.00020521,2]
[407850689,1772833842485,-163.32,0.0002053,2]
[407850690,1772833842495,-168.0,0.00020679,2]
[407850691,1772833842505,-284.3,0.00020687,2]
[407850692,1772833842514,-482.5,0.00020712,2]
[407850693,1772833842524,-163.32,0.000208,2]
[407850694,1772833842533,-168.0,0.00020816,2]
[407850695,1772833842543,-168.0,0.00020906,2]
[407850696,1772833842552,-482.5,0.00020986,2]
[407850697,1772833842562,-5000.0,0.00021,7]
[407850698,1772833842572,-168.0,0.00021032,2]
[407850699,1772833842581,-163.32,0.0002107,2]
[407850700,1772833842838,-168.0,0.00021087,2]
[407850701,1772833842847,-168.0,0.00021243,2]
[407850702,1772833842857,-412.49,0.0002126,2]
[407850703,1772833842866,-936.0,0.00021319,2]
[407850704,1772833842875,-163.32,0.0002134,2]
[407850705,1772833842884,-284.3,0.00021587,2]
[407850706,1772833842893,-163.32,0.0002161,2]
[407850707,1772833842903,-1000.0,0.00021689,2]
[407850708,1772833842912,-163.32,0.0002188,2]
[407850709,1772833842921,-5000.0,0.00021918,2]
[407850710,1772833842930,-471.34,0.00021918,2]
[407850711,1772833842939,-195.32,0.00022,30]
[407850712,1772833842949,-2576.11491031,0.00022009,2]
[407850713,1772833842958,-622.66,0.00022114,30]
[407850714,1772833842968,-163.32,0.0002215,2]
[407850715,1772833842978,-613.13,0.00022279,2]
[407850716,1772833842991,-163.37,0.0002242,2]
[407850717,1772833843000,-284.3,0.00022486,2]
[407850718,1772833843009,-2000.0,0.000229,2]
[407850719,1772833843019,-17446.31945346,0.00023,2]
[407850720,1772833843030,-160.0,0.00023,2]
[407850721,1772833843039,-14393.81556995,0.00023026,2]
[407850722,1772833843048,-864.07991914,0.00023119,2]
[407850723,1772833843058,-284.3,0.00023386,2]
[407850724,1772833843068,-500.0,0.00023469,2]
[407850725,1772833843076,-2494.07,0.00023522,2]
[407850726,1772833843086,-1000.0,0.00023858,2]
[407850727,1772833843095,-10376.0815664,0.00023874,2]
[407850728,1772833843104,-160.0,0.00024,7]
[407850729,1772833843114,-2576.11491031,0.00024125,2]
[407850730,1772833843126,-284.3,0.00024285,2]
[407850731,1772833843136,-1161.3486781,0.00024352,2]
[407850732,1772833843146,-182.38094926,0.00024366,2]
[407850733,1772833843155,-44079.8509373,0.00024376,2]
[407850734,1772833843164,-471.34,0.00024548,2]
[407850735,1772833843173,-1000.0,0.00024658,2]
[407850736,1772833843182,-150.0,0.00024658,2]
[407850737,1772833843192,-2315.2167416,0.0002474,2]
[407850738,1772833843201,-500.0,0.00024873,2]
[407850739,1772833843210,-500.0,0.00024873,2]
[407850740,1772833843220,-158.05960082,0.00024899,2]
[407850741,1772833843229,-8910.07,0.00024941,2]
[407850742,1772833843239,-160.0,0.00025,30]
[407850743,1772833843248,-622.66,0.00025049,30]
[407850744,1772833843258,-259.1319165,0.00025324,2]
[407850745,1772833843267,-10000.0,0.00025342,120]
[407850746,1772833843277,-10000.0,0.00025342,120]
[407850747,1772833843286,-10000.0,0.00025342,120]
[407850748,1772833843296,-10000.0,0.00025342,120]
[407850749,1772833843305,-10000.0,0.00025342,120]
[407850750,1772833843314,-10000.0,0.00025342,120]
[407850751,1772833843324,-10000.0,0.00025342,120]
[407850752,1772833843333,-10000.0,0.00025342,120]
[407850753,1772833843342,-10000.0,0.00025342,120]
[407850754,1772833843351,-10000.0,0.00025342,120]
[407850755,1772833843361,-10000.0,0.00025342,120]
[407850756,1772833843370,-960.0,0.00025342,120]
[407850757,1772833843379,-9835.5441989,0.00025353,2]
[407850758,1772833843389,-1000.0,0.00025421,2]
[407850759,1772833843399,-1000.0,0.00025421,2]
[407850760,1772833843408,-150.0,0.0002589,2]
[407850761,1772833843417,-1000.0,0.00025968,2]
[407850762,1772833843426,-1500.0,0.00025968,2]
[407850763,1772833843435,-1000.0,0.00026027,2]
[407850764,1772833843445,-195.32,0.00026193,30]
[407850765,1772833843454,-14393.81556995,0.0002621,2]
[407850766,1772833843464,-2576.11491031,0.00026241,2]
[407850767,1772833843474,-2046.47179689,0.00026516,2]
[407850768,1772833843483,-2000.0,0.000266,2]
[407850769,1772833843493,-158.5064583,0.00026645,2]
[407850770,1772833843503,-200.0,0.00026778,8]
[407850771,1772833843512,-440.71,0.00027123,4]
[407850772,1772833843522,-1341.0,0.00027169,2]
[407850773,1772833843531,-3502.0,0.00027169,2]
[407850774,1772833843541,-619.0,0.00027169,2]
[407850775,1772833843550,-1042.0,0.00027169,2]
[407850776,1772833843559,-1279.0,0.00027169,2]
[407850777,1772833843569,-1212.0,0.00027169,2]
[407850778,1772833843579,-5990.0,0.00027169,2]
[407850779,1772833843588,-414.0,0.00027169,2]
[407850780,1772833843598,-2073.766,0.00027169,2]
[407850781,1772833843607,-1740.537385,0.00027178,30]
[407850782,1772833843616,-709.287159,0.00027178,30]
[407850783,1772833843626,-150.0,0.00027185,2]
[407850784,1772833843635,-878.11,0.000273,14]
[407850785,1772833843644,-150.0,0.00027369,2]
[407850786,1772833843655,-1000.0,0.00027397,20]
[407850787,1772833843664,-300.0,0.00027397,2]
[407850788,1772833843674,-7318.96,0.00027397,10]
[407850789,1772833843683,-6099.14,0.00027397,10]
[407850790,1772833843693,-5082.61,0.00027397,10]
[407850791,1772833843702,-154.7,0.000274,7]
[407850792,1772833843711,-180.01,0.000275,7]
[407850793,1772833843720,-2661.0,0.00027692,5]
[407850794,1772833843729,-2719.0,0.00027692,5]
[407850795,1772833843738,-1967.0,0.00027692,5]
[407850796,1772833843748,-500.0,0.00027699,2]
[407850797,1772833843757,-9000.0,0.00027826,2]
[407850798,1772833843767,-2500.0,0.00027826,2]
[407850799,1772833843776,-2500.0,0.00027826,2]
[407850800,1772833843786,-721.12765535,0.00027826,2]
[407850801,1772833843795,-2500.0,0.00027826,2]
[407850802,1772833843804,-2500.0,0.00027826,2]
[407850803,1772833843813,-2500.0,0.00027826,2]
[407850804,1772833843822,-2500.0,0.00027826,2]
[407850805,1772833843831,-2500.0,0.00027826,2]
[407850806,1772833843841,-1000.0,0.00027826,2]
[407850807,1772833843850,-2500.0,0.00027826,2]
[407850808,1772833843859,-1000.0,0.00027826,2]
[407850809,1772833843869,-1620.82343587,0.00027826,2]
[407850810,1772833843878,-1000.0,0.00027826,2]
[407850811,1772833843887,-578.20924308,0.00027826,2]
[407850812,1772833843896,-151.0,0.00027826,2]
[407850813,1772833843906,-500.0,0.00027826,2]
[407850814,1772833843916,-500.0,0.00027826,2]
[407850815,1772833843927,-500.0,0.00027826,2]
[407850816,1772833843936,-500.0,0.00027826,2]
[407850817,1772833843945,-500.0,0.00027826,2]
[407850818,1772833843954,-500.0,0.00027826,2]
[407850819,1772833843964,-500.0,0.00027826,2]
[407850820,1772833843973,-500.0,0.00027826,2]
[407850821,1772833843985,-500.0,0.00027826,2]
[407850822,1772833843995,-500.0,0.00027826,2]
[407850823,1772833844004,-500.0,0.00027826,2]
[407850824,1772833844015,-500.0,0.00027826,2]
[407850825,1772833844026,-250.0,0.00027826,2]
[407850826,1772833844037,-693.3919763,0.00027826,2]
[407850827,1772833844046,-250.0,0.00027826,2]
[407850828,1772833844057,-250.0,0.00027826,2]
[407850829,1772833844067,-3000.0,0.00027826,2]
[407850830,1772833844076,-3000.0,0.00027826,2]
[407850831,1772833844086,-3000.0,0.00027826,2]
[407850832,1772833844097,-3000.0,0.00027826,2]
[407850833,1772833844107,-3000.0,0.00027826,2]
[407850836,1772833844116,-151.0,0.00027881,2]
[407850837,1772833844127,-719.04747942,0.00027881,2]
[407850840,1772833844136,-864.07991914,0.00027907,2]
[407850841,1772833844149,-151.0,0.00027936,2]
[407850842,1772833844160,-745.65223616,0.00027936,2]
[407850843,1772833844171,-622.66,0.00027984,30]
[407850845,1772833844180,-151.0,0.00027991,2]
[407850846,1772833844190,-773.2413689,0.00027991,2]
[407850847,1772833844200,-151.0,0.00028046,2]
[407850848,1772833844211,-801.85129955,0.00028046,2]
[407850849,1772833844220,-151.0,0.00028101,2]
[407850850,1772833844231,-831.51979763,0.00028101,2]
[407850851,1772833844240,-151.0,0.00028156,2]
[407850852,1772833844250,-862.28603014,0.00028156,2]
[407850853,1772833844259,-151.0,0.00028211,2]
[407850854,1772833844268,-894.19061326,0.00028211,2]
[407850855,1772833844278,-151.0,0.00028266,2]
[407850856,1772833844287,-927.27566595,0.00028266,2]
[407850857,1772833844300,-151.0,0.00028321,2]
[407850858,1772833844309,-961.58486559,0.00028321,2]
[407850859,1772833844318,-2576.11491031,0.00028358,2]
[407850860,1772833844328,-151.0,0.00028376,2]
[407850861,1772833844337,-997.16350561,0.00028376,2]
[407850862,1772833844347,-151.0,0.00028431,2]
[407850863,1772833844356,-151.0,0.00028486,2]
[407850864,1772833844365,-166.34,0.00028493,2]
[407850865,1772833844375,-151.0,0.00028541,2]
[407850866,1772833844385,-150.0,0.00028544,2]
[407850867,1772833844394,-892.86053309,0.00028565,2]
[407850868,1772833844404,-151.0,0.00028596,2]
[407850869,1772833844413,-151.0,0.00028651,2]
[407850870,1772833844422,-300.19989737,0.00028706,2]
[407850871,1772833844432,-565.0,0.00029064,10]
[407850872,1772833844442,-314.0,0.00029064,10]
[407850873,1772833844451,-14393.81556995,0.00029395,2]
[407850875,1772833844460,-1444.84473106,0.00029631,2]
[407850877,1772833844470,-240.80745518,0.00029897,2]
[407850879,1772833844480,-150.0,0.00029971,2]
[407850881,1772833844489,-804.33398658,0.0003,7]
[407850883,1772833844499,-1341.0,0.00030169,2]
[407850885,1772833844508,-3502.0,0.00030169,2]
[407850887,1772833844518,-619.0,0.00030169,2]
[407850889,1772833844527,-1042.0,0.00030169,2]
[407850891,1772833844536,-1011.794,0.00030169,2]
[407850893,1772833844546,-1212.0,0.00030169,2]
[407850894,1772833844555,-5990.0,0.00030169,2]
[407850895,1772833844565,-414.0,0.00030169,2]
[407850896,1772833844575,-240.80745518,0.00030193,2]
[407850897,1772833844584,-150.188,0.00030231,2]
[407850898,1772833844594,-2000.0,0.000303,2]
[407850899,1772833844603,-195.32,0.00030386,60]
[407850900,1772833844612,-197.95,0.00030411,120]
[407850901,1772833844622,-2576.11491031,0.00030474,2]
[407850902,1772833844632,-240.80745518,0.00030489,2]
[407850903,1772833844642,-500.0,0.00030565,2]
[407850904,1772833844675,-622.66,0.0003092,30]
[407850905,1772833844686,-227.0,0.00031387,30]
[407850906,1772833844695,-150.0,0.0003147,2]
[407850907,1772833844705,-150.0,0.0003159,5]
[407850909,1772833844715,-701.0,0.00031714,2]
[407850910,1772833844723,-250.0,0.00031714,2]
[407850911,1772833844732,-250.0,0.00031714,2]
[407850912,1772833844742,-250.0,0.00031714,2]
[407850913,1772833844751,-250.0,0.00031714,2]
[407850914,1772833844760,-250.0,0.00031714,2]
[407850915,1772833844770,-250.0,0.00031714,2]
[407850916,1772833844780,-250.0,0.00031714,2]
[407850917,1772833844789,-185.0,0.00031714,2]
[407850918,1772833844798,-2583.57,0.00031725,2]
[407850919,1772833844807,-224.19093608,0.00032,120]
[407850920,1772833844816,-196.00043953,0.00032,120]
[407850921,1772833844825,-257.644864,0.00032,120]
[407850922,1772833844834,-223.88690886,0.00032,120]
[407850923,1772833844844,-203.38789639,0.00032,120]
[407850924,1772833844855,-250.0,0.00032138,5]
[407850925,1772833844866,-14393.81556995,0.00032579,2]
[407850926,1772833844875,-2576.11491031,0.0003259,2]
[407850927,1772833844885,-864.07991914,0.00032695,2]
[407850928,1772833844894,-2000.0,0.00032877,2]
[407850929,1772833844903,-224.19093608,0.00033,120]
[407850930,1772833844913,-196.00043953,0.00033,120]
[407850931,1772833844922,-257.644864,0.00033,120]
[407850932,1772833844931,-203.38789639,0.00033,120]
[407850933,1772833844942,-150.0,0.00033,14]
[407850934,1772833844953,-150.0,0.00033043,2]
[407850935,1772833844963,-1341.0,0.00033169,2]
[407850936,1772833844973,-3502.0,0.00033169,2]
[407850937,1772833844988,-619.0,0.00033169,2]
[407850938,1772833845001,-1042.0,0.00033169,2]
[407850939,1772833845010,-1212.0,0.00033169,2]
[407850940,1772833845019,-2133.831,0.00033169,2]
[407850941,1772833845032,-414.0,0.00033169,2]
[407850942,1772833845043,-150.0,0.00033231,2]
[407850943,1772833845054,-500.0,0.00033304,2]
[407850944,1772833845067,-299.0,0.000336,30]
[407850945,1772833845078,-622.66,0.00033855,30]
[407850946,1772833845088,-196.00043953,0.000339,120]
[407850947,1772833845099,-257.644864,0.000339,120]
[407850948,1772833845110,-545.0,0.0003395,2]
[407850949,1772833845120,-300.0,0.0003395,2]
[407850950,1772833845129,-300.0,0.0003395,2]
[407850951,1772833845139,-300.0,0.0003395,2]
[407850952,1772833845152,-300.0,0.0003395,2]
[407850953,1772833845163,-300.0,0.0003395,2]
[407850954,1772833845173,-300.0,0.0003395,2]
[407850955,1772833845182,-300.0,0.0003395,2]
[407850956,1772833845192,-300.0,0.0003395,2]
[407850957,1772833845202,-182.0,0.0003395,2]
[407850958,1772833845213,-2000.0,0.00034,2]
[407850959,1772833845222,-731.76,0.000343,30]
[407850960,1772833845232,-150.0,0.0003433,7]
[407850961,1772833845241,-150.0,0.0003433,7]
[407850962,1772833845251,-224.0,0.0003433,7]
[407850963,1772833845262,-344.0,0.00034548,2]
[407850964,1772833845271,-195.32,0.00034579,60]
[407850965,1772833845281,-150.0,0.00034696,2]
[407850966,1772833845290,-1500.0,0.00034795,2]
[407850967,1772833845300,-257.644864,0.00035,120]
[407850968,1772833845309,-2494.07,0.00035303,2]
[407850969,1772833845320,-161.0,0.000357,120]
[407850970,1772833845331,-14393.81556995,0.00035763,2]
[407850971,1772833845341,-257.644864,0.00036,120]
[407850972,1772833845353,-500.0,0.00036043,2]